[Event "Early-Titled-Tuesday-Blitz-April-02-2024"]
[Site "Chess.com"]
[Date "2024.04.02"]
[Round "1"]
[White "JacksterThePro"]
[Black "Witik"]
[Result "1/2-1/2"]
[WhiteElo "2462"]
[BlackElo "2771"]
[TimeControl "180+1"]
[EndTime "8:07:58 PDT"]
[Termination "Game drawn by repetition"]

1. Nf3 {[%clk 0:03:00]} 1... Nf6 {[%clk 0:03:00.2]} 2. g3 {[%clk 0:02:58.7]}
2... g6 {[%clk 0:03:00.4]} 3. Bg2 {[%clk 0:02:58.5]} 3... Bg7 {[%clk 0:03:01.1]}
4. O-O {[%clk 0:02:59.2]} 4... O-O {[%clk 0:03:01.8]} 5. d4 {[%clk 0:02:57]}
5... d5 {[%clk 0:03:02.5]} 6. c4 {[%clk 0:02:56.4]} 6... c6 {[%clk 0:03:03.2]}
7. b3 {[%clk 0:02:49.1]} 7... dxc4 {[%clk 0:03:03.1]} 8. bxc4 {[%clk 0:02:49.1]}
8... c5 {[%clk 0:03:03.8]} 9. Bb2 {[%clk 0:02:41.4]} 9... Qb6 {[%clk 0:03:03.7]}
10. Qb3 {[%clk 0:02:37.5]} 10... Ne4 {[%clk 0:03:03.8]} 11. Nc3 {[%clk
0:02:07.4]} 11... Nxc3 {[%clk 0:02:56.3]} 12. Bxc3 {[%clk 0:02:03.3]} 12... Nc6
{[%clk 0:02:56.6]} 13. Rfd1 {[%clk 0:01:37.6]} 13... Bg4 {[%clk 0:02:49.4]} 14.
e3 {[%clk 0:01:17.2]} 14... Rfd8 {[%clk 0:02:44.6]} 15. Rac1 {[%clk 0:00:32.1]}
15... cxd4 {[%clk 0:02:25.6]} 16. exd4 {[%clk 0:00:31.1]} 16... Bxf3 {[%clk
0:02:20.6]} 17. Bxf3 {[%clk 0:00:27.8]} 17... Nxd4 {[%clk 0:02:21.1]} 18. Bxd4
{[%clk 0:00:24.4]} 18... Bxd4 {[%clk 0:02:17.8]} 19. Qxb6 {[%clk 0:00:18.5]}
19... axb6 {[%clk 0:02:17.3]} 20. Rd2 {[%clk 0:00:17.1]} 20... Ra7 {[%clk
0:01:50.1]} 21. Rcd1 {[%clk 0:00:15.2]} 21... e5 {[%clk 0:01:50]} 22. Bd5 {[%clk
0:00:14.7]} 22... b5 {[%clk 0:01:44.6]} 23. Kg2 {[%clk 0:00:14.5]} 23... Kg7
{[%clk 0:01:41.6]} 24. f4 {[%clk 0:00:13.4]} 24... f6 {[%clk 0:01:34.2]} 25.
fxe5 {[%clk 0:00:12.9]} 25... fxe5 {[%clk 0:01:34.8]} 26. Rf1 {[%clk 0:00:12.7]}
26... b6 {[%clk 0:01:35.4]} 27. Be6 {[%clk 0:00:10.5]} 27... b4 {[%clk
0:01:28.5]} 28. Bd5 {[%clk 0:00:10.3]} 28... b5 {[%clk 0:01:26.1]} 29. Rd3
{[%clk 0:00:09.9]} 29... Rxa2+ {[%clk 0:01:25.2]} 30. Kh3 {[%clk 0:00:09.7]}
30... Ra7 {[%clk 0:01:20.6]} 31. Rdf3 {[%clk 0:00:09.3]} 31... b3 {[%clk
0:01:12.5]} 32. Rxb3 {[%clk 0:00:05.8]} 32... bxc4 {[%clk 0:01:08.3]} 33. Bxc4
{[%clk 0:00:06.7]} 33... h5 {[%clk 0:01:07.7]} 34. Bd3 {[%clk 0:00:05.5]} 34...
Rd6 {[%clk 0:01:05.2]} 35. Be4 {[%clk 0:00:05.6]} 35... Kh6 {[%clk 0:01:03.9]}
36. Rbf3 {[%clk 0:00:03.8]} 36... Ra2 {[%clk 0:01:02.3]} 37. Rf6 {[%clk
0:00:02.6]} 37... Raa6 {[%clk 0:00:59]} 38. Rxd6 {[%clk 0:00:02.9]} 38... Rxd6
{[%clk 0:00:59.9]} 39. Rf8 {[%clk 0:00:02.1]} 39... Kg7 {[%clk 0:00:49.8]} 40.
Rc8 {[%clk 0:00:02.4]} 40... Be3 {[%clk 0:00:48]} 41. Rc6 {[%clk 0:00:02.8]}
41... Rxc6 {[%clk 0:00:13.5]} 42. Bxc6 {[%clk 0:00:03.7]} 42... g5 {[%clk
0:00:14.1]} 43. Kg2 {[%clk 0:00:03]} 43... g4 {[%clk 0:00:14.3]} 44. h3 {[%clk
0:00:03.1]} 44... Kh6 {[%clk 0:00:14.9]} 45. hxg4 {[%clk 0:00:03.2]} 45... h4
{[%clk 0:00:15.4]} 46. gxh4 {[%clk 0:00:03.2]} 46... Bd2 {[%clk 0:00:15.9]} 47.
Kf3 {[%clk 0:00:03.1]} 47... Be1 {[%clk 0:00:16.4]} 48. h5 {[%clk 0:00:03.6]}
48... Bd2 {[%clk 0:00:16.6]} 49. Be4 {[%clk 0:00:03.4]} 49... Bf4 {[%clk
0:00:16.7]} 50. Bc6 {[%clk 0:00:04.3]} 50... Kg5 {[%clk 0:00:17.3]} 51. Be4
{[%clk 0:00:04.8]} 51... Kh6 {[%clk 0:00:17.8]} 52. Bc6 {[%clk 0:00:05.3]} 52...
Kg5 {[%clk 0:00:18.5]} 53. Be4 {[%clk 0:00:05.9]} 53... Kh6 {[%clk 0:00:19.2]}
1/2-1/2

[Event "Early-Titled-Tuesday-Blitz-April-02-2024"]
[Site "Chess.com"]
[Date "2024.04.02"]
[Round "1"]
[White "santosalberto1987"]
[Black "GM_Levan_Pantsulaia"]
[Result "0-1"]
[WhiteElo "2505"]
[BlackElo "2882"]
[TimeControl "180+1"]
[EndTime "8:07:59 PDT"]
[Termination "GM_Levan_Pantsulaia won by resignation"]

1. e4 {[%clk 0:02:44]} 1... c5 {[%clk 0:02:56.8]} 2. Nf3 {[%clk 0:02:43.2]} 2...
e6 {[%clk 0:02:57.3]} 3. g3 {[%clk 0:02:43]} 3... Nc6 {[%clk 0:02:54.2]} 4. Bg2
{[%clk 0:02:43]} 4... Nf6 {[%clk 0:02:54.4]} 5. Qe2 {[%clk 0:02:42.9]} 5... d6
{[%clk 0:02:53.5]} 6. O-O {[%clk 0:02:42.5]} 6... Be7 {[%clk 0:02:53.9]} 7. c3
{[%clk 0:02:42.6]} 7... e5 {[%clk 0:02:52.5]} 8. Rd1 {[%clk 0:02:39]} 8... O-O
{[%clk 0:02:45.4]} 9. h3 {[%clk 0:02:38.6]} 9... Qb6 {[%clk 0:02:31.5]} 10. Na3
{[%clk 0:02:37.4]} 10... h6 {[%clk 0:02:22.9]} 11. Nc4 {[%clk 0:02:35.6]} 11...
Qa6 {[%clk 0:02:22.9]} 12. d3 {[%clk 0:02:35.6]} 12... Re8 {[%clk 0:02:15.6]}
13. Ne3 {[%clk 0:02:30.9]} 13... Bf8 {[%clk 0:02:14.4]} 14. Nd5 {[%clk 0:02:22]}
14... Nxd5 {[%clk 0:02:11.2]} 15. exd5 {[%clk 0:02:22.2]} 15... Ne7 {[%clk
0:02:11.6]} 16. c4 {[%clk 0:02:20.5]} 16... b5 {[%clk 0:02:04.8]} 17. b3 {[%clk
0:02:17.7]} 17... bxc4 {[%clk 0:02:03]} 18. bxc4 {[%clk 0:02:10.9]} 18... Rb8
{[%clk 0:01:53]} 19. Qc2 {[%clk 0:02:05.4]} 19... Bd7 {[%clk 0:01:52.6]} 20. a4
{[%clk 0:01:42.7]} 20... Rb4 {[%clk 0:01:50.9]} 21. Bd2 {[%clk 0:01:42.6]} 21...
Rxa4 {[%clk 0:01:46.4]} 22. Rxa4 {[%clk 0:01:42.4]} 22... Bxa4 {[%clk 0:01:34]}
23. Qa2 {[%clk 0:01:41.9]} 23... Nc8 {[%clk 0:01:31.2]} 24. Ra1 {[%clk
0:01:32.6]} 24... Nb6 {[%clk 0:01:31.3]} 25. Bc3 {[%clk 0:01:10.8]} 25... Ra8
{[%clk 0:01:11.1]} 26. Nd2 {[%clk 0:01:09.5]} 26... Qc8 {[%clk 0:01:09.3]} 27.
Ba5 {[%clk 0:01:06.1]} 27... Be7 {[%clk 0:01:00]} 28. Qb2 {[%clk 0:00:52]} 28...
Bd8 {[%clk 0:00:55.3]} 29. Ne4 {[%clk 0:00:46.4]} 29... Bc7 {[%clk 0:00:50.2]}
30. Qa2 {[%clk 0:00:35.2]} 30... f5 {[%clk 0:00:39.1]} 31. Nc3 {[%clk
0:00:34.3]} 31... Be8 {[%clk 0:00:37]} 32. h4 {[%clk 0:00:19]} 32... Nd7 {[%clk
0:00:28]} 33. Bh3 {[%clk 0:00:17.1]} 33... Nf6 {[%clk 0:00:27.3]} 34. Bxc7
{[%clk 0:00:15]} 34... Qxc7 {[%clk 0:00:28.2]} 35. Bxf5 {[%clk 0:00:15.3]} 35...
Bd7 {[%clk 0:00:27]} 36. Bxd7 {[%clk 0:00:13.9]} 36... Qxd7 {[%clk 0:00:27.9]}
37. Qa6 {[%clk 0:00:14]} 37... Qh3 {[%clk 0:00:25.8]} 38. Ne4 {[%clk 0:00:13.5]}
38... Ng4 {[%clk 0:00:24.1]} 39. Ra2 {[%clk 0:00:11.1]} 39... Rf8 {[%clk
0:00:22.6]} 40. Qxd6 {[%clk 0:00:09.8]} 40... Qh2+ {[%clk 0:00:12.4]} 41. Kf1
{[%clk 0:00:09.9]} 41... Qh1+ {[%clk 0:00:11.9]} 42. Ke2 {[%clk 0:00:10]} 42...
Qf3+ {[%clk 0:00:12.8]} 43. Ke1 {[%clk 0:00:09.1]} 43... Qxd3 {[%clk 0:00:12.2]}
44. Qe6+ {[%clk 0:00:09.1]} 44... Kh8 {[%clk 0:00:11.9]} 45. Qxg4 {[%clk
0:00:09.4]} 45... Qb1+ {[%clk 0:00:12.1]} 46. Ke2 {[%clk 0:00:07.7]} 46... Qxa2+
{[%clk 0:00:13]} 47. Kf1 {[%clk 0:00:08.4]} 47... Qxc4+ {[%clk 0:00:13.1]} 48.
Kg2 {[%clk 0:00:09.1]} 48... Qxd5 {[%clk 0:00:13.6]} 49. Kh2 {[%clk 0:00:08.9]}
49... c4 {[%clk 0:00:13.8]} 50. h5 {[%clk 0:00:08.8]} 50... Qd4 {[%clk
0:00:14.1]} 51. Qg6 {[%clk 0:00:08.2]} 51... c3 {[%clk 0:00:14.1]} 52. g4 {[%clk
0:00:07.2]} 52... c2 {[%clk 0:00:14]} 53. g5 {[%clk 0:00:07.6]} 53... c1=Q
{[%clk 0:00:13.3]} 0-1

[Event "Early-Titled-Tuesday-Blitz-April-02-2024"]
[Site "Chess.com"]
[Date "2024.04.02"]
[Round "1"]
[White "TitanChess666"]
[Black "lilleper1"]
[Result "0-1"]
[WhiteElo "2512"]
[BlackElo "2902"]
[TimeControl "180+1"]
[EndTime "8:08:02 PDT"]
[Termination "lilleper1 won by resignation"]

1. e4 {[%clk 0:03:00.9]} 1... e5 {[%clk 0:03:00.1]} 2. Nf3 {[%clk 0:03:00.9]}
2... Nc6 {[%clk 0:03:00.5]} 3. Bc4 {[%clk 0:03:01.5]} 3... g6 {[%clk 0:02:57.3]}
4. O-O {[%clk 0:02:57]} 4... Bg7 {[%clk 0:02:55.4]} 5. c3 {[%clk 0:02:56.9]}
5... Nf6 {[%clk 0:02:54.5]} 6. Re1 {[%clk 0:02:56.2]} 6... O-O {[%clk
0:02:53.8]} 7. d3 {[%clk 0:02:53.8]} 7... h6 {[%clk 0:02:51.6]} 8. h3 {[%clk
0:02:54.1]} 8... d5 {[%clk 0:02:48.9]} 9. exd5 {[%clk 0:02:54.1]} 9... Nxd5
{[%clk 0:02:49.8]} 10. Nbd2 {[%clk 0:02:53.9]} 10... Kh7 {[%clk 0:02:44]} 11.
Bb5 {[%clk 0:02:42.6]} 11... Nf4 {[%clk 0:02:33.4]} 12. Ne4 {[%clk 0:02:22.7]}
12... a6 {[%clk 0:02:31.8]} 13. Bxc6 {[%clk 0:02:15.4]} 13... bxc6 {[%clk
0:02:32.7]} 14. Bxf4 {[%clk 0:02:15.3]} 14... exf4 {[%clk 0:02:32.2]} 15. d4
{[%clk 0:02:15.6]} 15... Qd5 {[%clk 0:02:23.3]} 16. Nc5 {[%clk 0:02:14.5]} 16...
Rb8 {[%clk 0:02:16.5]} 17. b4 {[%clk 0:02:13.3]} 17... a5 {[%clk 0:02:10.1]} 18.
a3 {[%clk 0:02:04.8]} 18... g5 {[%clk 0:02:02.6]} 19. Ne5 {[%clk 0:02:02.5]}
19... Bf5 {[%clk 0:02:01]} 20. Qf3 {[%clk 0:01:56.3]} 20... Qxf3 {[%clk
0:01:23.8]} 21. gxf3 {[%clk 0:01:43.4]} 21... axb4 {[%clk 0:01:08.7]} 22. axb4
{[%clk 0:01:41.8]} 22... Ra8 {[%clk 0:01:03]} 23. Kg2 {[%clk 0:01:29.8]} 23...
Bxe5 {[%clk 0:00:38.7]} 24. Rxa8 {[%clk 0:01:25.2]} 24... Rxa8 {[%clk
0:00:39.6]} 25. Rxe5 {[%clk 0:01:25.4]} 25... Kg6 {[%clk 0:00:38]} 26. Re7
{[%clk 0:01:14.3]} 26... Ra7 {[%clk 0:00:38]} 27. Ne4 {[%clk 0:00:38.5]} 27...
h5 {[%clk 0:00:30.6]} 28. Nd2 {[%clk 0:00:30]} 28... Kf6 {[%clk 0:00:29.9]} 29.
Re8 {[%clk 0:00:27.8]} 29... Ra3 {[%clk 0:00:29.1]} 30. c4 {[%clk 0:00:20.2]}
30... Rd3 {[%clk 0:00:25.5]} 31. Ne4+ {[%clk 0:00:19.1]} 31... Bxe4 {[%clk
0:00:23.1]} 32. Rxe4 {[%clk 0:00:20]} 32... Rb3 {[%clk 0:00:18.9]} 33. d5 {[%clk
0:00:18.6]} 33... Rxb4 {[%clk 0:00:19.1]} 34. dxc6 {[%clk 0:00:17.7]} 34... Rb6
{[%clk 0:00:19.3]} 35. h4 {[%clk 0:00:14.8]} 35... Rxc6 {[%clk 0:00:17.8]} 36.
hxg5+ {[%clk 0:00:15.3]} 36... Kxg5 {[%clk 0:00:18.7]} 37. Kh3 {[%clk
0:00:14.1]} 37... Kf5 {[%clk 0:00:17.6]} 38. Kg2 {[%clk 0:00:12.4]} 38... Rg6+
{[%clk 0:00:17.4]} 39. Kh2 {[%clk 0:00:12.3]} 39... Re6 {[%clk 0:00:18]} 40. Rd4
{[%clk 0:00:12.4]} 40... Re2 {[%clk 0:00:18.5]} 41. Kg2 {[%clk 0:00:12.6]} 41...
Rc2 {[%clk 0:00:18.3]} 42. Kh2 {[%clk 0:00:10.4]} 42... c6 {[%clk 0:00:17.9]}
43. Kg2 {[%clk 0:00:10.7]} 43... Kg5 {[%clk 0:00:18]} 44. Re4 {[%clk 0:00:09.8]}
44... Kf5 {[%clk 0:00:18.1]} 45. Rd4 {[%clk 0:00:10.4]} 45... Kg5 {[%clk
0:00:17.9]} 46. Re4 {[%clk 0:00:11]} 46... f5 {[%clk 0:00:18.2]} 47. Rd4 {[%clk
0:00:11.2]} 47... h4 {[%clk 0:00:18.9]} 48. Kg1 {[%clk 0:00:08.9]} 48... c5
{[%clk 0:00:19]} 49. Rd8 {[%clk 0:00:07.3]} 49... Rxc4 {[%clk 0:00:18.6]} 50.
Rg8+ {[%clk 0:00:08]} 50... Kf6 {[%clk 0:00:18.8]} 51. Rh8 {[%clk 0:00:07]}
51... Rc1+ {[%clk 0:00:18.3]} 52. Kg2 {[%clk 0:00:07]} 52... Ke5 {[%clk
0:00:18.1]} 53. Rxh4 {[%clk 0:00:06.8]} 53... c4 {[%clk 0:00:18.7]} 54. Rh8
{[%clk 0:00:07.1]} 54... c3 {[%clk 0:00:18.8]} 55. Re8+ {[%clk 0:00:05.8]} 55...
Kd4 {[%clk 0:00:19.1]} 56. Rd8+ {[%clk 0:00:06.4]} 56... Kc4 {[%clk 0:00:19.4]}
57. Rf8 {[%clk 0:00:04.3]} 57... Rd1 {[%clk 0:00:19.5]} 58. Rxf5 {[%clk
0:00:04.9]} 58... c2 {[%clk 0:00:19.1]} 59. Rxf4+ {[%clk 0:00:05.6]} 59... Rd4
{[%clk 0:00:19]} 60. Rf8 {[%clk 0:00:05.7]} 60... Rd5 {[%clk 0:00:19.4]} 0-1

[Event "Early-Titled-Tuesday-Blitz-April-02-2024"]
[Site "Chess.com"]
[Date "2024.04.02"]
[Round "1"]
[White "ATM622"]
[Black "viviania"]
[Result "0-1"]
[WhiteElo "2507"]
[BlackElo "2889"]
[TimeControl "180+1"]
[EndTime "8:08:11 PDT"]
[Termination "viviania won by resignation"]

1. d4 {[%clk 0:03:00.9]} 1... d5 {[%clk 0:02:59.1]} 2. c4 {[%clk 0:03:01.1]}
2... Nc6 {[%clk 0:02:59.2]} 3. Nf3 {[%clk 0:03:00.9]} 3... Bg4 {[%clk
0:02:58.5]} 4. cxd5 {[%clk 0:02:59.7]} 4... Bxf3 {[%clk 0:02:58.1]} 5. dxc6
{[%clk 0:02:57.9]} 5... Bxc6 {[%clk 0:02:57.3]} 6. Nc3 {[%clk 0:02:57.6]} 6...
e6 {[%clk 0:02:57.5]} 7. a3 {[%clk 0:02:52.2]} 7... Nf6 {[%clk 0:02:40.3]} 8.
Qd3 {[%clk 0:02:51.2]} 8... Qd7 {[%clk 0:02:31.9]} 9. e4 {[%clk 0:02:48.2]} 9...
O-O-O {[%clk 0:02:31.8]} 10. Be3 {[%clk 0:02:47.5]} 10... Ng4 {[%clk 0:02:31.6]}
11. O-O-O {[%clk 0:02:43.3]} 11... Kb8 {[%clk 0:02:13]} 12. b3 {[%clk
0:02:35.4]} 12... Bxa3+ {[%clk 0:02:10.4]} 13. Kc2 {[%clk 0:02:35.2]} 13... Bb4
{[%clk 0:01:54.7]} 14. d5 {[%clk 0:02:19.4]} 14... Bxc3 {[%clk 0:01:44.4]} 15.
dxc6 {[%clk 0:02:11.7]} 15... Nxe3+ {[%clk 0:01:27.9]} 16. fxe3 {[%clk
0:02:10.9]} 16... Qxd3+ {[%clk 0:01:27.7]} 17. Rxd3 {[%clk 0:02:09.6]} 17... Be5
{[%clk 0:01:24.9]} 18. Be2 {[%clk 0:01:58.8]} 18... bxc6 {[%clk 0:01:21.8]} 19.
Rhd1 {[%clk 0:01:56.3]} 19... Rd6 {[%clk 0:01:14.1]} 20. Rf1 {[%clk 0:01:36.5]}
20... Rf8 {[%clk 0:01:04.2]} 21. h4 {[%clk 0:01:33.5]} 21... Kb7 {[%clk
0:00:52.9]} 22. g4 {[%clk 0:01:31.4]} 22... h6 {[%clk 0:00:46.5]} 23. g5 {[%clk
0:01:21]} 23... hxg5 {[%clk 0:00:45.4]} 24. hxg5 {[%clk 0:01:21.1]} 24... g6
{[%clk 0:00:45.5]} 25. Bg4 {[%clk 0:01:13.5]} 25... Rxd3 {[%clk 0:00:35.8]} 26.
Kxd3 {[%clk 0:01:14.4]} 26... Rd8+ {[%clk 0:00:33.9]} 27. Kc2 {[%clk 0:01:14.3]}
27... Rd7 {[%clk 0:00:33.9]} 28. Rh1 {[%clk 0:01:12.6]} 28... Bd6 {[%clk
0:00:26.8]} 29. Rh7 {[%clk 0:01:11.2]} 29... Re7 {[%clk 0:00:26.6]} 30. Kd3
{[%clk 0:01:08.7]} 30... Kb6 {[%clk 0:00:22.2]} 31. Kc4 {[%clk 0:00:53.2]} 31...
a5 {[%clk 0:00:19]} 32. Rh8 {[%clk 0:00:50.1]} 32... Bc5 {[%clk 0:00:18.8]} 33.
Rh3 {[%clk 0:00:31.2]} 33... Rd7 {[%clk 0:00:17]} 34. Rf3 {[%clk 0:00:31.1]}
34... Bb4 {[%clk 0:00:16.4]} 35. Bh3 {[%clk 0:00:22]} 35... Ba3 {[%clk
0:00:16.2]} 36. Bg4 {[%clk 0:00:21.8]} 36... Bb2 {[%clk 0:00:15.9]} 37. Bh3
{[%clk 0:00:21.4]} 37... Ba3 {[%clk 0:00:16]} 38. Bg4 {[%clk 0:00:21.4]} 38...
Bb4 {[%clk 0:00:16.3]} 39. Bh3 {[%clk 0:00:21.4]} 39... Be1 {[%clk 0:00:16.5]}
40. Rf1 {[%clk 0:00:13.4]} 40... Bh4 {[%clk 0:00:16.1]} 41. Rg1 {[%clk
0:00:13.2]} 41... Bf2 {[%clk 0:00:16.2]} 42. Rf1 {[%clk 0:00:05.5]} 42... Bxe3
{[%clk 0:00:16.3]} 43. e5 {[%clk 0:00:04.4]} 43... Bxg5 {[%clk 0:00:16]} 44. Bg2
{[%clk 0:00:04.3]} 44... Bh4 {[%clk 0:00:15.7]} 45. Rc1 {[%clk 0:00:03.9]} 45...
Bf2 {[%clk 0:00:14.6]} 46. Kc3 {[%clk 0:00:03.8]} 46... c5 {[%clk 0:00:14.5]}
47. Kc4 {[%clk 0:00:02.1]} 47... Bd4 {[%clk 0:00:14.4]} 48. Kd3 {[%clk 0:00:02]}
48... Bxe5+ {[%clk 0:00:14.4]} 49. Kc2 {[%clk 0:00:02.8]} 49... Bg7 {[%clk
0:00:14]} 50. Rf1 {[%clk 0:00:02.8]} 50... Be5 {[%clk 0:00:14.1]} 51. b4 {[%clk
0:00:02.9]} 51... axb4 {[%clk 0:00:13.6]} 52. Kb3 {[%clk 0:00:03.4]} 52... Rd3+
{[%clk 0:00:13.2]} 53. Kc2 {[%clk 0:00:03.7]} 53... Rc3+ {[%clk 0:00:13.4]} 54.
Kb1 {[%clk 0:00:04.1]} 54... b3 {[%clk 0:00:12.6]} 55. Be4 {[%clk 0:00:03.2]}
55... Re3 {[%clk 0:00:12.3]} 56. Bh1 {[%clk 0:00:02.1]} 56... Re2 {[%clk
0:00:11.8]} 57. Rd1 {[%clk 0:00:02.1]} 57... Ra2 {[%clk 0:00:11.1]} 58. Rd6+
{[%clk 0:00:01.7]} 58... cxd6 {[%clk 0:00:10.4]} 0-1

[Event "Early-Titled-Tuesday-Blitz-April-02-2024"]
[Site "Chess.com"]
[Date "2024.04.02"]
[Round "1"]
[White "SaiAgni_98"]
[Black "GalaxyRoman"]
[Result "0-1"]
[WhiteElo "2493"]
[BlackElo "2837"]
[TimeControl "180+1"]
[EndTime "8:08:12 PDT"]
[Termination "GalaxyRoman won by checkmate"]

1. c4 {[%clk 0:03:00.9]} 1... Nf6 {[%clk 0:02:56.2]} 2. g3 {[%clk 0:03:00.3]}
2... c5 {[%clk 0:02:51.9]} 3. Bg2 {[%clk 0:02:59.8]} 3... Nc6 {[%clk 0:02:52.5]}
4. Nc3 {[%clk 0:02:59.7]} 4... g6 {[%clk 0:02:51.6]} 5. a3 {[%clk 0:02:55.5]}
5... Bg7 {[%clk 0:02:50.6]} 6. Nf3 {[%clk 0:02:52.5]} 6... d6 {[%clk 0:02:46.7]}
7. Rb1 {[%clk 0:02:50.9]} 7... O-O {[%clk 0:02:46]} 8. d3 {[%clk 0:02:49.9]}
8... e5 {[%clk 0:02:34.3]} 9. O-O {[%clk 0:02:45.7]} 9... a5 {[%clk 0:02:30]}
10. Bg5 {[%clk 0:02:43]} 10... h6 {[%clk 0:02:26]} 11. Bxf6 {[%clk 0:02:42.8]}
11... Bxf6 {[%clk 0:02:26.9]} 12. Ne1 {[%clk 0:02:39.7]} 12... Be6 {[%clk
0:02:23.6]} 13. Nc2 {[%clk 0:02:38.3]} 13... Bg7 {[%clk 0:01:59.4]} 14. b4
{[%clk 0:02:29.6]} 14... axb4 {[%clk 0:01:48]} 15. axb4 {[%clk 0:02:30.5]} 15...
Rb8 {[%clk 0:01:34.2]} 16. Nd5 {[%clk 0:01:43.8]} 16... f5 {[%clk 0:01:15]} 17.
e3 {[%clk 0:01:40.9]} 17... Kh7 {[%clk 0:01:10.5]} 18. bxc5 {[%clk 0:01:33.1]}
18... dxc5 {[%clk 0:01:11.4]} 19. Rb5 {[%clk 0:01:33.1]} 19... b6 {[%clk
0:00:50.4]} 20. Qb1 {[%clk 0:01:32.3]} 20... Bxd5 {[%clk 0:00:50.1]} 21. Bxd5
{[%clk 0:01:12.9]} 21... Ne7 {[%clk 0:00:48.2]} 22. Qb3 {[%clk 0:01:04.3]} 22...
f4 {[%clk 0:00:44.5]} 23. Be4 {[%clk 0:00:54.9]} 23... Rf6 {[%clk 0:00:23.9]}
24. Rb1 {[%clk 0:00:45.4]} 24... Qc7 {[%clk 0:00:21.4]} 25. Ne1 {[%clk
0:00:35.9]} 25... fxe3 {[%clk 0:00:12.9]} 26. fxe3 {[%clk 0:00:36.8]} 26... Kh8
{[%clk 0:00:12.1]} 27. Nf3 {[%clk 0:00:34.4]} 27... Nf5 {[%clk 0:00:12.3]} 28.
Nh4 {[%clk 0:00:25.4]} 28... Nxh4 {[%clk 0:00:09]} 29. gxh4 {[%clk 0:00:26.3]}
29... Rd6 {[%clk 0:00:04.2]} 30. Kh1 {[%clk 0:00:25.9]} 30... Qd8 {[%clk
0:00:04]} 31. Rxc5 {[%clk 0:00:20.1]} 31... Qxh4 {[%clk 0:00:04.3]} 32. Rd5
{[%clk 0:00:19.7]} 32... Rf6 {[%clk 0:00:04.1]} 33. Qc2 {[%clk 0:00:14.4]} 33...
Rf2 {[%clk 0:00:03.6]} 34. Qxf2 {[%clk 0:00:10.9]} 34... Qxf2 {[%clk 0:00:04.5]}
35. Rg1 {[%clk 0:00:11]} 35... g5 {[%clk 0:00:03.6]} 36. Rd7 {[%clk 0:00:07.8]}
36... Qxe3 {[%clk 0:00:03.6]} 37. Rf7 {[%clk 0:00:06.8]} 37... Rf8 {[%clk
0:00:03.7]} 38. Rxf8+ {[%clk 0:00:04.4]} 38... Bxf8 {[%clk 0:00:04.6]} 39. Rf1
{[%clk 0:00:04.7]} 39... Bc5 {[%clk 0:00:04.9]} 40. Kg2 {[%clk 0:00:05.3]} 40...
Kg7 {[%clk 0:00:05]} 41. Rf3 {[%clk 0:00:05.6]} 41... Qd2+ {[%clk 0:00:05.3]}
42. Kh3 {[%clk 0:00:05.3]} 42... Qe1 {[%clk 0:00:05.4]} 43. Kg4 {[%clk
0:00:04.8]} 43... Qg1+ {[%clk 0:00:05.3]} 44. Kf5 {[%clk 0:00:05.3]} 44... Qxh2
{[%clk 0:00:05.3]} 45. Ke6 {[%clk 0:00:05.7]} 45... Qh5 {[%clk 0:00:05.7]} 46.
Kxe5 {[%clk 0:00:04.4]} 46... Qe8+ {[%clk 0:00:06]} 47. Kd5 {[%clk 0:00:04.4]}
47... Qd7+ {[%clk 0:00:06.3]} 48. Ke5 {[%clk 0:00:04.5]} 48... Bd4# {[%clk
0:00:06.8]} 0-1